bitfinex/quotes_BTCUSD_20250314
["timestamp","ask_amount","ask_price","bid_price","bid_amount"]
[1741970890339,0.380098,84596.0,84593.0,0.248247]
[1741970890486,0.380098,84596.0,84592.0,0.236428]
[1741970890487,0.236421,84595.0,84592.0,0.236428]
[1741970890668,0.011821,84594.0,84580.0,0.003]
[1741970890876,0.011821,84589.0,84580.0,0.014823]
[1741970891071,0.236447,84586.0,84582.0,0.236454]
[1741970891269,0.011822,84586.0,84580.0,0.23646]
[1741970891500,0.236451,84585.0,84581.0,0.236458]
[1741970891701,0.011821,84589.0,84584.0,0.23645]
[1741970891702,0.248259,84589.0,84584.0,0.23645]
[1741970891862,0.236442,84588.0,84585.0,0.236448]
[1741970892059,0.236439,84589.0,84586.0,0.236444]
[1741970892262,0.248263,84588.0,84583.0,0.248275]
[1741970892469,0.011822,84588.0,84583.0,0.011822]
[1741970892664,0.011821,84589.0,84582.0,0.011822]
[1741970892908,0.011822,84587.0,84582.0,0.236454]
[1741970893266,0.011821,84592.0,84583.0,0.236454]
[1741970893501,0.011822,84585.0,84580.0,0.001]
[1741970893839,0.4146547,84597.0,84573.0,0.248304]
[1741970893840,0.236473,84577.0,84573.0,0.248304]
[1741970894189,0.248285,84580.0,84576.0,0.23647]
[1741970894403,0.248273,84585.0,84581.0,0.236458]
[1741970894595,0.011822,84583.0,84578.0,0.248288]
[1741970894800,0.011822,84583.0,84575.0,0.011823]
[1741970894801,0.236466,84579.0,84575.0,0.248296]
[1741970895005,0.236466,84579.0,84574.0,0.0119926]
[1741970895160,0.236471,84577.0,84575.0,0.236476]
[1741970895364,0.236473,84577.0,84574.0,0.0001696]
[1741970895565,0.236469,84578.0,84574.0,0.0119926]
[1741970895778,0.236469,84578.0,84575.0,0.236474]
[1741970896179,0.248287,84580.0,84576.0,0.236473]
[1741970896382,0.236465,84579.0,84576.0,0.236473]
[1741970896604,0.23647,84578.0,84574.0,0.2484696]
[1741970896784,0.248299,84575.0,84574.0,0.0001696]
[1741970896983,0.236471,84577.0,84574.0,0.0001696]
[1741970896984,0.236473,84576.0,84574.0,0.0001696]
[1741970897304,0.248276,84583.0,84580.0,0.236461]
[1741970897503,0.248276,84583.0,84575.0,0.005]
[1741970897504,0.236471,84577.0,84575.0,0.005]
[1741970897682,0.236473,84576.0,84574.0,0.0001696]
[1741970897882,0.248299,84575.0,84574.0,0.0001696]
[1741970898083,0.248299,84575.0,84574.0,0.0051696]
[1741970898491,0.236476,84575.0,84574.0,0.0001696]
[1741970898741,0.248299,84575.0,84574.0,0.0001696]
[1741970898891,0.248299,84575.0,84574.0,0.0051696]
[1741970899491,0.248299,84575.0,84574.0,0.0091696]
[1741970899691,0.248299,84575.0,84574.0,0.0051696]
[1741970900119,0.329799,84575.0,84574.0,0.0021696]
[1741970900524,0.329799,84575.0,84574.0,0.0051696]
[1741970901044,0.329799,84575.0,84574.0,0.0021696]
[1741970901343,0.001,84575.0,84574.0,0.2366486]
[1741970901552,0.001,84575.0,84574.0,0.2484716]
[1741970901780,0.003,84575.0,84574.0,0.2484716]
[1741970902525,0.001,84575.0,84574.0,0.2484716]
[1741970902858,0.001,84575.0,84574.0,0.0001696]
[1741970903058,0.012823,84575.0,84574.0,0.0001696]
[1741970903257,0.249299,84575.0,84574.0,0.0001696]
[1741970903481,0.249299,84575.0,84574.0,0.0011696]
[1741970903947,0.248299,84575.0,84574.0,0.0011696]
[1741970904148,0.248299,84575.0,84574.0,0.0021696]
[1741970904349,0.20551345,84576.0,84574.0,0.0021696]
[1741970904543,0.236476,84575.0,84574.0,0.0021696]
[1741970904749,0.248299,84575.0,84574.0,0.0011696]
[1741970905029,0.248299,84575.0,84574.0,0.0031696]
[1741970905161,0.248299,84575.0,84574.0,0.0021696]
[1741970905562,0.236476,84575.0,84574.0,0.0021696]
[1741970905984,0.27204677,84577.0,84574.0,0.0021696]
[1741970905985,0.02374777,84577.0,84575.0,0.236476]
[1741970906204,0.4139,84578.0,84577.0,0.23647]
[1741970906604,0.4139,84578.0,84577.0,0.248293]
[1741970906782,0.43753076,84578.0,84577.0,0.248293]
[1741970907561,0.43753076,84578.0,84575.0,0.237476]
[1741970907800,0.43753076,84578.0,84576.0,0.236471]
[1741970908115,0.43753076,84578.0,84577.0,0.011823]
[1741970908315,0.4142392,84594.0,84593.0,0.248247]
[1741970908516,0.43720254,84594.0,84593.0,0.248247]
[1741970908815,0.4142392,84594.0,84593.0,0.248247]
[1741970909456,0.0003392,84594.0,84593.0,0.248247]
[1741970909649,0.0023392,84594.0,84593.0,0.330147]
[1741970911277,0.0033392,84594.0,84593.0,0.330147]
[1741970911574,0.0033392,84594.0,84593.0,0.248247]
[1741970911780,0.0023392,84594.0,84593.0,0.248247]
[1741970911932,0.0023392,84594.0,84593.0,0.251247]
[1741970912139,0.0003392,84594.0,84593.0,0.251247]
[1741970912357,0.0003392,84594.0,84593.0,0.253247]
[1741970916078,0.2367622,84594.0,84593.0,0.005]
[1741970916302,0.0003392,84594.0,84593.0,0.005]
[1741970916510,0.0003392,84594.0,84593.0,0.016821]
[1741970916752,0.0003392,84594.0,84593.0,0.253247]
[1741970919787,0.0003392,84594.0,84593.0,0.251247]
[1741970920177,0.0003392,84594.0,84593.0,0.248247]
[1741970920401,0.0003392,84594.0,84593.0,0.251247]
[1741970920615,0.0003392,84594.0,84593.0,0.253247]
[1741970921044,0.0003392,84594.0,84593.0,0.250247]
[1741970921503,0.0003392,84594.0,84593.0,0.255247]
[1741970921836,0.0003392,84594.0,84593.0,0.253247]
[1741970922339,0.0003392,84594.0,84593.0,0.257247]
[1741970930965,0.0003392,84594.0,84593.0,0.009]
[1741970931825,0.2485832,84594.0,84593.0,0.009]
[1741970932528,0.6624832,84594.0,84593.0,0.009]
[1741970933045,0.6624832,84594.0,84593.0,0.004]
[1741970933386,0.4142392,84594.0,84593.0,0.012821]
[1741970933592,0.4142392,84594.0,84593.0,0.249247]
[1741970933733,0.4142392,84594.0,84593.0,0.250247]
[1741970933935,0.4142392,84594.0,84593.0,0.249247]
[1741970934146,0.4142392,84594.0,84593.0,0.251247]
[1741970936436,0.4142392,84594.0,84593.0,0.249247]
[1741970936636,0.4142392,84594.0,84593.0,0.252247]
[1741970937003,0.4142392,84594.0,84593.0,0.255247]
[1741970938406,0.0003392,84594.0,84593.0,0.255247]
[1741970938829,0.0003392,84594.0,84593.0,0.243426]
[1741970938991,0.2367622,84594.0,84593.0,0.007]
[1741970939817,0.0003392,84594.0,84593.0,0.007]
[1741970940047,0.0003392,84594.0,84593.0,0.255247]
[1741970941038,9e-07,84597.0,84596.0,0.248237]
[1741970941297,0.0003396,84616.0,84615.0,0.248182]
[1741970941298,6e-07,84616.0,84615.0,0.248182]
[1741970941467,0.0001252,84616.0,84615.0,0.391622]
[1741970941671,2e-07,84616.0,84615.0,0.691622]
[1741970941874,2e-07,84616.0,84615.0,0.739722]
[1741970943161,2e-07,84616.0,84615.0,0.76226285]
[1741970943535,3.3e-07,84621.0,84620.0,0.548167]
[1741970943715,0.00044206,84631.0,84630.0,0.548138]
[1741970944010,0.00044206,84631.0,84630.0,0.691578]
[1741970944645,0.00044206,84631.0,84630.0,0.391578]
[1741970945044,0.00044206,84631.0,84630.0,0.397578]
[1741970945860,0.00034297,84631.0,84630.0,0.397578]
[1741970946073,0.00034297,84631.0,84630.0,0.403578]
[1741970947519,9.7e-07,84631.0,84630.0,2.203578]
[1741970948740,9.7e-07,84631.0,84630.0,2.22462837]
[1741970949345,1.8e-07,84636.0,84635.0,0.626123]
[1741970949570,6e-07,84647.0,84646.0,0.248091]
[1741970949747,6e-07,84647.0,84646.0,0.691451]
[1741970949953,6e-07,84647.0,84646.0,2.191451]
[1741970951013,6e-07,84647.0,84646.0,2.197451]
[1741970951224,6e-07,84647.0,84646.0,2.203451]
[1741970952355,6e-07,84647.0,84646.0,2.197451]
[1741970952718,6e-07,84647.0,84646.0,2.203451]
[1741970952925,6e-07,84647.0,84646.0,2.197451]
[1741970953143,6e-07,84647.0,84646.0,2.191451]
[1741970953476,6e-07,84647.0,84646.0,2.197451]
[1741970953681,6e-07,84647.0,84646.0,2.203451]
[1741970953803,6e-07,84647.0,84646.0,0.560091]
[1741970954005,6e-07,84647.0,84646.0,0.409411]
[1741970955548,6e-07,84647.0,84646.0,0.403411]
[1741970955754,6e-07,84647.0,84646.0,0.409411]
[1741970956264,6e-07,84647.0,84646.0,0.403411]
[1741970956750,6e-07,84647.0,84646.0,0.397411]
[1741970957167,6e-07,84647.0,84646.0,0.401411]
[1741970957313,6e-07,84647.0,84646.0,0.397411]
[1741970957725,6e-07,84647.0,84646.0,1.903411]
[1741970958104,6e-07,84647.0,84646.0,0.403411]
[1741970959584,6e-07,84647.0,84646.0,0.4035805]
[1741970960220,0.0001697,84656.0,84647.0,0.548088]
[1741970960426,0.0001697,84656.0,84653.0,0.24807]
[1741970960845,0.0001697,84656.0,84653.0,1.74807]
[1741970961048,7e-07,84654.0,84653.0,2.04807]
[1741970962842,7e-07,84654.0,84653.0,2.05907]
[1741970963051,1e-06,84662.0,84661.0,0.248047]
[1741970963355,0.00012553,84662.0,84661.0,0.691327]
[1741970963525,1.3e-07,84675.0,84674.0,0.24801]
[1741970965846,1.3e-07,84675.0,84674.0,0.25401]
[1741970966057,1.3e-07,84675.0,84674.0,0.55401]
[1741970966257,5.3e-07,84679.0,84678.0,0.547997]
[1741970966455,5.3e-07,84679.0,84678.0,0.691237]
[1741970967627,7.3e-07,84700.0,84689.0,0.011807]
[1741970967841,0.0003392,84701.0,84683.0,0.305]
[1741970967842,9.3e-07,84701.0,84700.0,0.011806]
[1741970968173,0.00041621,84701.0,84700.0,0.15622635]
[1741970968309,2.1e-07,84701.0,84700.0,1.6770236]
[1741970968516,2.1e-07,84701.0,84700.0,1.97584325]
[1741970969168,2.1e-07,84701.0,84700.0,1.98184325]
[1741970969367,2.1e-07,84724.0,84723.0,0.247866]
[1741970969539,9.345e-05,84724.0,84723.0,0.247866]
[1741970969974,9.345e-05,84724.0,84723.0,0.391066]
[1741970970397,9.345e-05,84724.0,84723.0,0.247866]
[1741970970580,9.345e-05,84724.0,84723.0,0.391066]
[1741970971161,0.00043245,84724.0,84723.0,0.397066]
[1741970971369,0.00043245,84724.0,84723.0,0.40684446]
[1741970972000,2.4e-07,84724.0,84723.0,0.70684446]
[1741970972356,2.4e-07,84724.0,84723.0,0.56264446]
[1741970972648,2.4e-07,84724.0,84723.0,0.70584446]
[1741970972817,2.4e-07,84724.0,84723.0,0.71184446]
[1741970973052,2.4e-07,84724.0,84723.0,0.71180446]
[1741970973459,2.4e-07,84724.0,84723.0,0.70580446]
[1741970973973,2.4e-07,84724.0,84723.0,0.71180446]
[1741970974178,2.4e-07,84724.0,84723.0,0.70580446]
[1741970974579,2.4e-07,84724.0,84723.0,0.56864446]
[1741970975444,2.4e-07,84724.0,84723.0,0.71180446]
[1741970976101,2.4e-07,84724.0,84723.0,0.56864446]
[1741970976410,2.4e-07,84724.0,84723.0,0.71176446]
[1741970976590,2.4e-07,84724.0,84723.0,0.64564446]
[1741970977004,1.4e-07,84732.0,84731.0,0.247843]
[1741970977156,0.000339,84760.0,84723.0,0.55270146]
[1741970977157,0.000339,84760.0,84748.0,0.247792]
[1741970977600,0.000339,84760.0,84748.0,1.890912]
[1741970977863,1e-06,84749.0,84748.0,1.91237804]
[1741970978101,1e-06,84749.0,84748.0,1.76925804]
[1741970978488,1e-06,84749.0,84748.0,1.91537804]
[1741970978688,1e-06,84749.0,84748.0,1.92137804]
[1741970978973,1e-06,84749.0,84748.0,1.91837804]
[1741970979304,1e-06,84749.0,84748.0,2.21837804]
[1741970979668,1e-06,84760.0,84759.0,0.547761]
[1741970979921,4.4e-07,84760.0,84759.0,0.690841]
[1741970980764,4.4e-07,84760.0,84753.0,0.247775]
[1741970980765,4.4e-07,84760.0,84748.0,0.05416131]
[1741970980996,4.4e-07,84760.0,84749.0,0.14308]
[1741970981167,4.4e-07,84760.0,84750.0,0.14308]
[1741970981363,0.235964,84759.0,84748.0,0.00889627]
[1741970981590,0.01179844,84760.0,84746.0,0.14308]
[1741970981729,4.4e-07,84760.0,84746.0,0.14308]
[1741970981926,4.4e-07,84760.0,84749.0,0.235989]
[1741970982124,0.23596244,84760.0,84749.0,0.235989]
[1741970982353,4.4e-07,84760.0,84749.0,0.235989]
[1741970982553,0.235964,84759.0,84748.0,0.253791]
[1741970982750,0.247762,84759.0,84748.0,0.006]
[1741970982952,0.0003386,84749.0,84748.0,0.006]
[1741970983558,0.0003386,84749.0,84746.0,0.14308]
[1741970983771,0.236,84746.0,84738.0,0.011801]
[1741970983962,0.236006,84744.0,84737.0,0.55690556]
[1741970984231,0.2363296,84749.0,84735.0,0.011801]
[1741970984232,0.011799,84746.0,84736.0,0.011801]
[1741970984441,0.011801,84734.0,84722.0,0.011803]
[1741970984642,0.236051,84728.0,84707.0,0.236105]
[1741970984857,0.011802,84727.0,84696.0,0.25954417]
[1741970985082,0.425702,84727.0,84708.0,0.011805]
[1741970985283,0.425702,84727.0,84718.0,0.236077]
[1741970985487,0.425702,84727.0,84716.0,0.011804]
[1741970985764,0.425702,84727.0,84726.0,0.10584693]
[1741970985995,0.4139,84727.0,84726.0,0.10584693]
[1741970986202,0.425702,84727.0,84726.0,0.10684693]
[1741970986385,0.425702,84727.0,84726.0,0.001124]
[1741970988151,0.425702,84727.0,84726.0,0.003124]
[1741970988152,0.415702,84727.0,84726.0,0.003124]
[1741970988366,0.43421073,84727.0,84726.0,0.003124]
[1741970989013,0.42240873,84727.0,84726.0,0.014926]
[1741970989211,0.42240873,84727.0,84726.0,0.003124]
[1741970989212,0.43421073,84727.0,84726.0,0.003124]
[1741970990386,0.73421073,84727.0,84726.0,0.003124]
[1741970991166,0.73421073,84727.0,84726.0,0.001124]
[1741970991481,0.73421073,84727.0,84726.0,0.000124]
[1741970993188,0.42240873,84727.0,84726.0,0.247981]
[1741970993348,0.42240873,84727.0,84726.0,0.000124]
[1741970993554,0.43421073,84727.0,84726.0,0.000124]
[1741970993936,0.42240873,84727.0,84726.0,0.011926]
[1741970994310,0.42240873,84727.0,84726.0,0.0120953]
[1741970994671,0.67026273,84727.0,84726.0,0.0002933]
[1741970994872,0.97026273,84727.0,84726.0,0.0002933]
[1741970995456,0.97026273,84727.0,84726.0,0.0012933]
[1741970996976,0.98480358,84727.0,84726.0,0.0012933]
[1741970997890,0.98480358,84727.0,84726.0,0.0022933]
[1741970999794,0.98480358,84727.0,84703.0,0.236117]
[1741970999795,0.236113,84706.0,84703.0,0.236117]
[1741971000012,0.23611,84706.0,84705.0,9.324e-05]
[1741971000221,0.011804,84713.0,84705.0,9.324e-05]
[1741971000222,0.56152085,84727.0,84705.0,9.324e-05]
[1741971000358,0.011803,84720.0,84714.0,0.011804]
[1741971000558,0.236097,84711.0,84709.0,0.236102]
[1741971000767,0.011803,84719.0,84705.0,0.01189824]
[1741971000768,0.247915,84706.0,84705.0,9.324e-05]
[1741971002112,0.01851324,84706.0,84705.0,0.24800824]
[1741971002839,0.01851324,84706.0,84705.0,0.39108824]
[1741971003992,0.01851324,84706.0,84705.0,0.39208824]
[1741971004779,0.01851324,84706.0,84705.0,0.39408824]
[1741971004979,0.01851324,84706.0,84705.0,0.39108824]
[1741971005204,0.01851324,84706.0,84705.0,0.39608824]
[1741971005408,2.4e-07,84706.0,84705.0,0.39908824]
[1741971005554,0.4089,84731.0,84730.0,0.247845]
[1741971006157,0.4089,84731.0,84722.0,0.011803]
[1741971006386,0.247852,84728.0,84724.0,0.23606]
[1741971006589,0.011802,84728.0,84720.0,0.011803]
[1741971006764,0.011802,84726.0,84721.0,0.236068]
[1741971006958,0.011802,84726.0,84723.0,0.236062]
[1741971007166,0.011802,84727.0,84722.0,0.236066]
[1741971007424,0.247852,84728.0,84724.0,0.236059]
[1741971007578,0.4089,84731.0,84730.0,0.251845]
[1741971008118,0.4089,84731.0,84730.0,0.247845]
[1741971008321,0.656744,84731.0,84730.0,0.003]
[1741971009756,0.4089,84731.0,84730.0,0.003]
[1741971010164,0.4089,84731.0,84730.0,0.239043]
[1741971010541,0.4089,84731.0,84730.0,0.243043]
[1741971010720,0.10350995,84731.0,84730.0,0.243043]
[1741971011063,0.10350995,84731.0,84730.0,0.239043]
[1741971011308,0.10350995,84731.0,84730.0,0.238043]
[1741971011486,0.10350995,84731.0,84730.0,0.003]
[1741971011679,0.35135295,84731.0,84730.0,0.003]
[1741971011879,0.10350995,84731.0,84730.0,0.239043]
[1741971012179,0.10350995,84731.0,84730.0,0.250845]
[1741971013329,0.10350995,84731.0,84730.0,0.003]
[1741971013548,0.35135295,84731.0,84730.0,0.003]
[1741971013772,0.43265295,84731.0,84730.0,0.003]
[1741971013986,0.86559541,84731.0,84730.0,0.001]
[1741971014117,0.50331918,84731.0,84730.0,0.006]
[1741971014316,0.43936018,84731.0,84730.0,0.005]
[1741971014614,0.236058,84725.0,84722.0,0.236066]
[1741971014803,0.20831918,84731.0,84730.0,0.236043]
[1741971015029,0.44436218,84731.0,84730.0,0.001]
[1741971015435,0.20831918,84731.0,84722.0,0.236064]
[1741971015656,0.236043,84730.0,84727.0,0.236051]
[1741971015837,0.44436018,84731.0,84727.0,0.236051]
[1741971016032,0.20831918,84731.0,84728.0,0.236046]
[1741971016236,0.44436118,84731.0,84728.0,0.236046]
[1741971016458,0.12701918,84731.0,84730.0,0.236043]
[1741971016863,0.12701918,84731.0,84730.0,0.214043]
[1741971017536,0.12701918,84731.0,84730.0,0.225845]
[1741971017936,0.10850995,84731.0,84730.0,0.225845]
[1741971018240,0.10884915,84731.0,84730.0,0.225845]
[1741971018514,0.10884915,84731.0,84730.0,0.228845]
[1741971018730,0.10884915,84731.0,84730.0,0.231845]
[1741971019103,0.10884915,84731.0,84730.0,0.217043]
[1741971019307,0.10884915,84731.0,84730.0,0.232845]
[1741971020092,0.10884915,84731.0,84730.0,0.229845]
[1741971020287,0.10884915,84731.0,84730.0,0.234845]
[1741971020493,0.01884593,84731.0,84730.0,0.234845]
[1741971020895,0.01884593,84731.0,84730.0,0.223043]
[1741971021705,0.01884593,84731.0,84730.0,0.234845]
[1741971021947,0.01884593,84731.0,84730.0,0.223043]
[1741971022160,0.01884593,84731.0,84730.0,0.009]
[1741971022299,0.01884593,84731.0,84730.0,0.256845]
[1741971023135,0.01884593,84731.0,84730.0,0.252845]
[1741971023668,0.0003392,84731.0,84730.0,0.252845]
[1741971023870,0.0003392,84731.0,84730.0,0.247845]
[1741971024108,0.0003392,84731.0,84730.0,0.250845]
[1741971024282,0.0003392,84731.0,84730.0,0.239043]
[1741971024502,0.0003392,84731.0,84730.0,0.241043]
[1741971024688,0.0003392,84731.0,84730.0,0.236043]
[1741971024919,0.0003392,84731.0,84730.0,0.241043]
[1741971025069,0.0003392,84731.0,84730.0,0.244043]
[1741971025474,0.0003392,84731.0,84730.0,0.255845]
[1741971026323,0.0003392,84731.0,84730.0,0.398885]
[1741971027068,0.0003392,84731.0,84730.0,0.393885]
[1741971027340,0.0003392,84731.0,84730.0,0.256845]
[1741971027473,0.0003392,84731.0,84730.0,0.253845]
[1741971027697,0.0003392,84731.0,84730.0,1.901845]
[1741971028352,0.0003392,84731.0,84730.0,1.758845]
[1741971028550,0.0003392,84731.0,84730.0,1.890845]
[1741971028963,0.0003392,84731.0,84730.0,1.895845]
[1741971029139,0.0003392,84731.0,84730.0,1.890845]
[1741971029339,0.0003392,84731.0,84730.0,1.896845]
[1741971029603,2e-07,84731.0,84730.0,1.753845]
[1741971029815,2e-07,84731.0,84730.0,1.946745]
[1741971029939,2e-07,84731.0,84730.0,1.96595183]
[1741971030183,2e-07,84731.0,84730.0,1.97195183]
[1741971030623,2e-07,84731.0,84730.0,1.96595183]
[1741971030872,2e-07,84731.0,84730.0,2.25995183]
[1741971031044,2e-07,84731.0,84730.0,2.26595183]
[1741971031667,2e-07,84731.0,84730.0,2.27195183]
[1741971033019,2e-07,84731.0,84730.0,2.26595183]
[1741971033260,2e-07,84731.0,84730.0,2.25995183]
[1741971033657,2e-07,84731.0,84730.0,2.26595183]
[1741971034597,2e-07,84731.0,84730.0,2.27195183]
[1741971034775,2e-07,84731.0,84730.0,2.25995183]
[1741971034936,2e-07,84731.0,84730.0,2.27195183]
[1741971035551,2e-07,84731.0,84730.0,2.27795183]
[1741971036391,2e-07,84731.0,84730.0,2.27195183]
[1741971036772,3.2e-07,84749.0,84748.0,0.011799]
[1741971036981,3.2e-07,84749.0,84748.0,0.76883169]
[1741971037181,3.2e-07,84749.0,84748.0,0.767652]
[1741971037553,3.2e-07,84749.0,84748.0,2.267652]
[1741971037779,9.2e-07,84760.0,84759.0,0.247761]
[1741971038025,0.00012527,84760.0,84759.0,0.547761]
[1741971038222,2.7e-07,84760.0,84759.0,0.547761]
[1741971038629,2.7e-07,84760.0,84759.0,2.124661]
[1741971039077,2.7e-07,84760.0,84759.0,2.14338875]
[1741971039486,2.7e-07,84760.0,84759.0,2.14938875]
[1741971039698,0.0129096,84778.0,84777.0,0.247708]
[1741971039699,8.7e-07,84778.0,84777.0,0.247708]
[1741971039981,8.7e-07,84778.0,84777.0,0.773268]
[1741971040337,8.7e-07,84789.0,84788.0,0.247676]
[1741971040545,0.0004155,84789.0,84788.0,0.247676]
[1741971041144,0.0004155,84789.0,84788.0,0.390636]
[1741971041504,0.0004155,84789.0,84788.0,0.690636]
[1741971041779,5e-07,84789.0,84788.0,0.73042657]
[1741971042533,1e-07,84808.0,84807.0,0.24762]
[1741971042784,9e-07,84816.0,84815.0,0.247597]
[1741971043220,0.10044885,84828.0,84824.0,0.247569]
[1741971043392,0.10044885,84828.0,84827.0,0.011788]
[1741971043775,0.01948576,84838.0,84827.0,0.011788]
[1741971043776,0.01948576,84838.0,84828.0,0.247559]
[1741971043986,0.00070104,84829.0,84828.0,0.247559]
[1741971045492,0.00070104,84829.0,84828.0,0.250559]
[1741971045635,8e-05,84839.0,84838.0,0.011787]
[1741971046721,8e-05,84839.0,84837.0,0.247533]
[1741971046903,0.011867,84839.0,84831.0,0.011788]
[1741971047132,0.011867,84839.0,84835.0,0.235749]
[1741971047315,8e-05,84839.0,84835.0,0.235749]
[1741971047606,8e-05,84839.0,84838.0,0.002]
[1741971047992,8e-05,84839.0,84837.0,0.237745]
[1741971048191,8e-05,84839.0,84836.0,0.011787]
[1741971048192,8e-05,84839.0,84836.0,0.235747]
[1741971048582,8e-05,84839.0,84837.0,0.235745]
[1741971049249,0.235745,84838.0,84835.0,0.002]
[1741971049450,8e-05,84839.0,84838.0,0.235743]
[1741971049860,8e-05,84839.0,84819.0,0.011789]
[1741971050012,0.011788,84831.0,84817.0,0.01179]
[1741971050222,0.01454085,84838.0,84830.0,0.011788]
[1741971050580,0.40548995,84839.0,84827.0,0.011788]
[1741971050581,0.40548995,84839.0,84829.0,0.011788]
[1741971050749,0.42930314,84839.0,84838.0,0.005]
[1741971051062,0.40548995,84839.0,84838.0,0.238743]
[1741971051304,0.40548995,84839.0,84834.0,0.235752]
[1741971051528,0.24753,84838.0,84832.0,0.235758]
[1741971051700,0.235749,84836.0,84832.0,0.235758]
[1741971051930,0.235747,84837.0,84833.0,0.235755]
[1741971052203,0.41727695,84839.0,84835.0,0.23575]
[1741971052419,0.40548995,84839.0,84838.0,0.235743]
[1741971052547,0.40548995,84839.0,84835.0,0.235751]
[1741971052770,0.011787,84837.0,84831.0,0.235761]
[1741971052973,0.24755,84831.0,84825.0,0.235779]
[1741971053224,0.235752,84835.0,84828.0,0.247557]
[1741971053426,0.41719695,84837.0,84828.0,0.247557]
[1741971053427,0.40540995,84837.0,84833.0,0.011787]
[1741971053621,0.40540995,84837.0,84836.0,0.247535]
[1741971055037,8e-05,84839.0,84836.0,0.390375]
[1741971055236,8e-05,84839.0,84838.0,0.24753]
[1741971057025,1e-06,84839.0,84838.0,0.24753]
[1741971057617,1e-06,84839.0,84838.0,1.80143]
[1741971057734,1e-06,84839.0,84838.0,2.10143]
[1741971058384,1e-06,84839.0,84838.0,2.10643]
[1741971058765,1e-06,84839.0,84838.0,2.24423]
[1741971059366,1e-06,84839.0,84838.0,2.19633]
[1741971059780,1e-06,84839.0,84838.0,1.89033]
[1741971059945,1e-06,84839.0,84838.0,1.90233]
[1741971060385,1e-06,84839.0,84838.0,1.89633]
[1741971060591,1e-06,84839.0,84838.0,1.75353]
[1741971060797,1e-06,84839.0,84838.0,0.40233]
[1741971061823,1e-06,84839.0,84838.0,0.25953]
[1741971062025,0.01847981,84847.0,84846.0,0.235721]
[1741971062226,0.0186041,84847.0,84846.0,0.247507]
[1741971064373,0.00012429,84847.0,84846.0,0.247507]
[1741971064575,0.00012429,84847.0,84846.0,0.252507]
[1741971065197,0.00012429,84847.0,84846.0,0.238721]
[1741971065963,0.00012429,84847.0,84846.0,0.235721]
[1741971066344,0.00012429,84847.0,84846.0,0.252507]
[1741971066656,0.00012429,84847.0,84846.0,0.256507]
[1741971066866,0.0177047,84847.0,84846.0,0.251507]
[1741971068864,0.02225487,84847.0,84846.0,0.253507]
[1741971069252,0.02225487,84847.0,84846.0,0.251507]
[1741971070331,0.02225487,84847.0,84846.0,0.256507]
[1741971070529,0.00029369,84847.0,84846.0,0.256507]
[1741971070683,0.00029369,84847.0,84846.0,0.244721]
[1741971070885,0.00029369,84847.0,84846.0,0.009]
[1741971071119,0.07949369,84847.0,84846.0,0.009]
[1741971071488,0.07949369,84847.0,84846.0,0.244721]
[1741971071711,0.07949369,84847.0,84846.0,0.240721]
[1741971072498,0.07949369,84847.0,84846.0,0.235721]
[1741971072738,0.07949369,84847.0,84846.0,0.237721]
[1741971072937,0.07949369,84847.0,84846.0,0.002]
[1741971073187,0.31521169,84847.0,84846.0,0.002]
[1741971073361,0.09127869,84847.0,84846.0,0.001]
[1741971073559,0.32699669,84847.0,84846.0,0.002]
[1741971074060,0.32699669,84847.0,84828.0,0.2478968]
[1741971074061,0.011786,84840.0,84832.0,0.235759]
[1741971074236,0.011786,84844.0,84835.0,0.235749]
[1741971074441,0.235747,84837.0,84833.0,0.235757]
[1741971074845,0.235743,84838.0,84833.0,0.235757]
[1741971075027,0.25421619,84842.0,84839.0,0.23574]
[1741971075228,0.235737,84841.0,84837.0,0.235746]
[1741971075642,0.235739,84840.0,84835.0,0.235751]
[1741971075836,0.011787,84835.0,84828.0,0.0003388]
[1741971076325,0.235757,84833.0,84828.0,0.2361068]
[1741971076525,0.011787,84837.0,84833.0,0.002]
[1741971076526,0.235747,84837.0,84833.0,0.002]
[1741971076758,0.011787,84838.0,84833.0,0.235755]
[1741971076958,0.46709695,84839.0,84829.0,0.011788]
[1741971076959,0.45530995,84839.0,84829.0,0.011788]
[1741971077165,0.40540995,84839.0,84838.0,0.235743]
[1741971077589,0.40540995,84839.0,84838.0,0.24753]
[1741971077938,0.40540995,84839.0,84838.0,0.24653]
[1741971078262,0.40540995,84839.0,84838.0,0.234743]
[1741971078915,0.011787,84838.0,84827.0,0.1428]
[1741971079133,0.41719695,84839.0,84837.0,0.0003388]
[1741971079328,0.235743,84838.0,84837.0,0.0003388]
[1741971079575,0.40540995,84839.0,84838.0,0.24753]
[1741971079768,0.40540995,84839.0,84838.0,0.25053]
[1741971080066,0.40540995,84839.0,84838.0,0.24953]
[1741971080471,0.40540995,84839.0,84838.0,0.24753]
[1741971080831,0.40540995,84839.0,84838.0,0.24853]
[1741971081354,0.40540995,84839.0,84838.0,0.25053]
[1741971084076,0.0001694,84841.0,84840.0,0.247523]
[1741971085120,4e-07,84841.0,84840.0,0.247523]
[1741971086104,4e-07,84841.0,84840.0,0.251523]
[1741971086314,9e-08,84847.0,84846.0,0.247507]
[1741971086532,9e-08,84847.0,84846.0,0.390307]
[1741971087742,9e-08,84847.0,84846.0,1.896307]
[1741971088222,9e-08,84847.0,84846.0,2.190307]
[1741971088421,9e-08,84847.0,84846.0,2.196307]
[1741971089301,9e-08,84847.0,84846.0,2.278607]
[1741971089582,9e-08,84847.0,84846.0,2.334107]
[1741971090310,9e-08,84847.0,84846.0,2.328107]
[1741971090547,3.6e-07,84861.0,84860.0,0.247466]
[1741971090745,0.0129096,84864.0,84863.0,0.247456]
[1741971090943,0.0129096,84864.0,84863.0,0.390216]
[1741971091937,0.0129096,84864.0,84861.0,0.235677]
[1741971092152,0.0129096,84864.0,84862.0,0.235676]
[1741971092344,0.03138708,84864.0,84863.0,0.011783]
[1741971092948,0.14129721,84878.0,84877.0,0.247416]
[1741971093153,0.14171143,84878.0,84877.0,0.235635]
[1741971093333,0.14171143,84878.0,84877.0,0.247416]
[1741971094094,0.13671143,84878.0,84877.0,0.247416]